[Event "Championnat du monde jeunes U12F"]
[Date "2024.11.24"]
[White "Wang, Tianmu"]
[Black "Hrckova, Anna"]
[WhiteElo "1640"]
[BlackElo "1441"]
[Round "9.33"]
[Result "1-0"]
[TimeControl "5400+30"]

1. e4 {[%clk 1:30:57]} 1... e6 {[%clk 1:30:56]} 2. d4 {[%clk 1:31:22]} 2... d5
{[%clk 1:31:23]} 3. exd5 {[%clk 1:31:19]} 3... exd5 {[%clk 1:31:45]} 4. Nf3
{[%clk 1:31:41]} 4... Bd6 {[%clk 1:32:01]} 5. Bd3 {[%clk 1:31:24]} 5... Nc6
{[%clk 1:32:14]} 6. c3 {[%clk 1:31:17]} 6... Be6 {[%clk 1:32:31]} 7. O-O {[%clk
1:31:17]} 7... h6 {[%clk 1:24:57]} 8. Re1 {[%clk 1:30:33]} 8... Qf6 {[%clk
1:21:16]} 9. c4 {[%clk 1:21:36]} 9... O-O-O {[%clk 1:18:53]} 10. c5 {[%clk
1:19:11]} 10... Bf4 {[%clk 1:18:55]} 11. Bxf4 {[%clk 1:16:06]} 11... Qxf4 {[%clk
1:17:51]} 12. Bb5 {[%clk 1:15:47]} 12... Nge7 {[%clk 1:16:28]} 13. Qa4 {[%clk
1:10:56]} 13... Kb8 {[%clk 1:12:09]} 14. Nc3 {[%clk 0:59:49]} 14... h5 {[%clk
0:59:37]} 15. Ne2 {[%clk 0:58:09]} 15... Qg4 {[%clk 0:59:44]} 16. b4 {[%clk
0:57:26]} 16... Qg6 {[%clk 0:58:09]} 17. Bxc6 {[%clk 0:54:03]} 17... Nxc6 {[%clk
0:58:07]} 18. Nf4 {[%clk 0:52:10]} 18... Qg4 {[%clk 0:56:32]} 19. Nxe6 {[%clk
0:51:45]} 19... fxe6 {[%clk 0:56:53]} 20. b5 {[%clk 0:51:54]} 20... Ne7 {[%clk
0:57:14]} 21. c6 {[%clk 0:51:50]} 21... Rd6 {[%clk 0:55:12]} 22. Rac1 {[%clk
0:48:44]} 22... Rf8 {[%clk 0:50:15]} 23. Ne5 {[%clk 0:46:50]} 23... Qg5 {[%clk
0:49:34]} 24. Nd7+ {[%clk 0:44:09]} 24... Rxd7 {[%clk 0:49:56]} 25. cxd7 {[%clk
0:44:26]} 25... Qg6 {[%clk 0:48:26]} 26. Qa5 {[%clk 0:43:41]} 26... c6 {[%clk
0:47:32]} 27. d8=Q+ {[%clk 0:43:54]} 27... Rxd8 {[%clk 0:47:47]} 28. Qxd8+
{[%clk 0:44:16]} 28... Nc8 {[%clk 0:48:02]} 29. bxc6 {[%clk 0:44:39]} 29... b6
{[%clk 0:47:32]} 30. Qd7 {[%clk 0:44:40]} 30... Nd6 {[%clk 0:36:10]} 31. c7+
{[%clk 0:44:23]} 31... Kb7 {[%clk 0:36:04]} 32. c8=Q# {[%clk 0:44:46]} 1-0

[Variant "Standard"]
[Site "Europe Echecs"]

[Event "Championnat du monde jeunes U12F"]
[Date "2024.11.24"]
[White "Laurincova, Timea"]
[Black "Jacome Revelo, Daniela Alexandra"]
[WhiteElo "1549"]
[BlackElo "1764"]
[Round "9.34"]
[Result "1/2-1/2"]
[TimeControl "5400+30"]

1. e4 {[%clk 1:30:58]} 1... c5 {[%clk 1:30:41]} 2. Nf3 {[%clk 1:31:23]} 2... g6
{[%clk 1:30:48]} 3. d4 {[%clk 1:31:40]} 3... cxd4 {[%clk 1:31:06]} 4. Nxd4
{[%clk 1:32:02]} 4... Nc6 {[%clk 1:30:56]} 5. c4 {[%clk 1:32:18]} 5... Nf6
{[%clk 1:30:57]} 6. Nc3 {[%clk 1:32:39]} 6... d6 {[%clk 1:30:33]} 7. f3 {[%clk
1:32:11]} 7... Nxd4 {[%clk 1:26:20]} 8. Qxd4 {[%clk 1:32:28]} 8... Bg7 {[%clk
1:26:04]} 9. Be3 {[%clk 1:32:48]} 9... O-O {[%clk 1:24:15]} 10. Qd2 {[%clk
1:32:35]} 10... Be6 {[%clk 1:21:42]} 11. Rc1 {[%clk 1:31:44]} 11... Qa5 {[%clk
1:20:51]} 12. Bd3 {[%clk 1:31:33]} 12... Nd7 {[%clk 1:16:26]} 13. b3 {[%clk
1:30:32]} 13... Rfc8 {[%clk 1:13:58]} 14. Ne2 {[%clk 1:29:59]} 14... Qa3 {[%clk
1:11:08]} 15. Nf4 {[%clk 1:25:00]} 15... a5 {[%clk 1:07:35]} 16. Nxe6 {[%clk
1:23:22]} 16... fxe6 {[%clk 1:06:55]} 17. h4 {[%clk 1:21:34]} 17... Qb4 {[%clk
0:56:37]} 18. h5 {[%clk 1:18:17]} 18... Ne5 {[%clk 0:55:16]} 19. Bb1 {[%clk
1:16:00]} 19... Qxd2+ {[%clk 0:53:34]} 20. Kxd2 {[%clk 1:16:20]} 20... a4 {[%clk
0:53:51]} 21. Bc2 {[%clk 1:13:13]} 21... axb3 {[%clk 0:51:27]} 22. Bxb3 {[%clk
1:13:02]} 22... Rc6 {[%clk 0:51:05]} 23. c5 {[%clk 1:09:54]} 23... dxc5 {[%clk
0:46:52]} 24. Rxc5 {[%clk 1:08:48]} 24... Kf7 {[%clk 0:41:46]} 25. hxg6+ {[%clk
1:06:07]} 25... hxg6 {[%clk 0:41:39]} 26. Rxc6 {[%clk 1:06:21]} 26... Nxc6
{[%clk 0:41:24]} 27. Rh7 {[%clk 1:04:51]} 27... Kg8 {[%clk 0:40:06]} 28. Rh1
{[%clk 1:04:28]} 28... Kf7 {[%clk 0:39:11]} 29. Rd1 {[%clk 1:03:32]} 29... Na5
{[%clk 0:33:17]} 30. Ke2 {[%clk 0:56:35]} 30... Nxb3 {[%clk 0:32:05]} 31. axb3
{[%clk 0:56:55]} 31... Ra2+ {[%clk 0:28:56]} 32. Rd2 {[%clk 0:56:33]} 32... Ra3
{[%clk 0:29:10]} 33. Rd3 {[%clk 0:56:30]} 1/2-1/2

[Variant "Standard"]
[Site "Europe Echecs"]

[Event "Championnat du monde jeunes U12F"]
[Date "2024.11.24"]
[White "Tsinjoviniavo, Aina Mahasambatra"]
[Black "Hiznicenco, Valeria"]
[WhiteElo "1716"]
[BlackElo "1513"]
[Round "9.35"]
[Result "1/2-1/2"]
[TimeControl "5400+30"]

1. e4 {[%clk 1:30:45]} 1... e5 {[%clk 1:30:44]} 2. Nf3 {[%clk 1:31:08]} 2... Nc6
{[%clk 1:31:08]} 3. d4 {[%clk 1:31:32]} 3... exd4 {[%clk 1:31:27]} 4. Nxd4
{[%clk 1:31:56]} 4... Qh4 {[%clk 1:31:44]} 5. Qd3 {[%clk 1:30:05]} 5... Nf6
{[%clk 1:31:44]} 6. Nxc6 {[%clk 1:29:42]} 6... dxc6 {[%clk 1:28:54]} 7. Nd2
{[%clk 1:26:54]} 7... Bb4 {[%clk 1:27:02]} 8. c3 {[%clk 1:25:27]} 8... Bc5
{[%clk 1:20:34]} 9. g3 {[%clk 1:19:06]} 9... Qg4 {[%clk 1:15:40]} 10. Bg2 {[%clk
1:16:39]} 10... O-O {[%clk 1:09:16]} 11. Nb3 {[%clk 1:14:32]} 11... Bb6 {[%clk
1:08:00]} 12. Be3 {[%clk 1:12:15]} 12... Bxe3 {[%clk 1:03:43]} 13. Qxe3 {[%clk
1:12:35]} 13... Re8 {[%clk 1:00:32]} 14. f3 {[%clk 1:11:32]} 14... Qg6 {[%clk
0:50:06]} 15. O-O-O {[%clk 1:07:05]} 15... Nd5 {[%clk 0:44:21]} 16. Qd2 {[%clk
1:06:21]} 16... Nb6 {[%clk 0:42:11]} 17. Qd8 {[%clk 1:03:25]} 17... Bh3 {[%clk
0:40:05]} 18. Qd2 {[%clk 1:00:32]} 18... Nc4 {[%clk 0:38:40]} 19. Qe2 {[%clk
0:56:52]} 19... Bxg2 {[%clk 0:38:42]} 20. Qxg2 {[%clk 0:53:33]} 20... Ne3 {[%clk
0:38:52]} 21. Qd2 {[%clk 0:53:44]} 21... Nxd1 {[%clk 0:38:46]} 22. Rxd1 {[%clk
0:54:08]} 22... Qf6 {[%clk 0:35:57]} 23. Qe3 {[%clk 0:52:53]} 23... Qh6 {[%clk
0:28:14]} 24. Qxh6 {[%clk 0:53:17]} 24... gxh6 {[%clk 0:28:35]} 25. Rd7 {[%clk
0:53:16]} 25... Rac8 {[%clk 0:21:00]} 26. Na5 {[%clk 0:52:54]} 26... Red8 {[%clk
0:18:16]} 27. Rxd8+ {[%clk 0:53:02]} 27... Rxd8 {[%clk 0:18:35]} 28. Nxb7 {[%clk
0:52:57]} 28... Rd3 {[%clk 0:18:26]} 29. f4 {[%clk 0:51:23]} 29... Re3 {[%clk
0:18:39]} 30. Kd2 {[%clk 0:50:30]} 30... Rxe4 {[%clk 0:17:04]} 31. Nd8 {[%clk
0:46:10]} 31... Ra4 {[%clk 0:11:44]} 32. Nxc6 {[%clk 0:36:35]} 32... Rxa2 {[%clk
0:11:58]} 33. Kc2 {[%clk 0:36:37]} 33... Kf8 {[%clk 0:10:09]} 34. f5 {[%clk
0:30:04]} 34... a5 {[%clk 0:05:47]} 35. Kb1 Ra4 36. Kc2 1/2-1/2

[Variant "Standard"]
[Site "Europe Echecs"]

[Event "Championnat du monde jeunes U12F"]
[Date "2024.11.24"]
[White "Budhram, Kaylee"]
[Black "Mrad, Anahid"]
[WhiteElo "1614"]
[BlackElo "1558"]
[Round "9.36"]
[Result "1/2-1/2"]
[TimeControl "5400+30"]

1. d4 {[%clk 1:30:57]} 1... d5 {[%clk 1:30:56]} 2. c4 {[%clk 1:31:22]} 2... e6
{[%clk 1:31:22]} 3. Nf3 {[%clk 1:31:47]} 3... a6 {[%clk 1:31:45]} 4. g3 {[%clk
1:32:02]} 4... dxc4 {[%clk 1:32:07]} 5. a4 {[%clk 1:32:18]} 5... Bb4+ {[%clk
1:21:56]} 6. Bd2 {[%clk 1:32:36]} 6... Qd6 {[%clk 1:20:59]} 7. e4 {[%clk
1:19:17]} 7... Nc6 {[%clk 1:14:59]} 8. Bxb4 {[%clk 1:13:31]} 8... Qxb4+ {[%clk
1:10:35]} 9. Qd2 {[%clk 1:13:53]} 9... Nf6 {[%clk 1:06:57]} 10. e5 {[%clk
1:09:46]} 10... Ne4 {[%clk 1:04:14]} 11. Qxb4 {[%clk 1:09:28]} 11... Nxb4 {[%clk
1:01:03]} 12. Na3 {[%clk 1:09:49]} 12... b5 {[%clk 0:58:19]} 13. Bg2 {[%clk
0:45:34]} 13... Nd3+ {[%clk 0:47:04]} 14. Ke2 {[%clk 0:45:39]} 14... Nexf2
{[%clk 0:42:09]} 15. Ne1 {[%clk 0:45:14]} 15... Rb8 {[%clk 0:40:40]} 16. Rf1
{[%clk 0:42:36]} 16... Bb7 {[%clk 0:38:27]} 17. Bxb7 {[%clk 0:24:28]} 17... Rxb7
{[%clk 0:36:56]} 18. axb5 {[%clk 0:24:44]} 18... axb5 {[%clk 0:36:56]} 19. Nxc4
{[%clk 0:21:18]} 19... bxc4 {[%clk 0:27:08]} 20. Ra8+ {[%clk 0:20:59]} 20... Kd7
{[%clk 0:26:05]} 21. Rxh8 {[%clk 0:20:55]} 21... Rxb2+ {[%clk 0:25:40]} 22. Kf3
{[%clk 0:21:14]} 22... c3 {[%clk 0:23:07]} 23. Nxd3 {[%clk 0:08:22]} 1/2-1/2

[Variant "Standard"]
[Site "Europe Echecs"]

[Event "Championnat du monde jeunes U12F"]
[Date "2024.11.24"]
[White "Petrusic, Dusica"]
[Black "Ordonez Alarcon, Daniela"]
[WhiteElo "1498"]
[BlackElo "1606"]
[Round "9.37"]
[Result "1/2-1/2"]
[TimeControl "5400+30"]

1. e4 {[%clk 1:30:57]} 1... e5 {[%clk 1:30:51]} 2. Nf3 {[%clk 1:31:21]} 2... Nc6
{[%clk 1:31:16]} 3. Bb5 {[%clk 1:31:45]} 3... a6 {[%clk 1:31:42]} 4. Ba4 {[%clk
1:32:12]} 4... Nf6 {[%clk 1:32:06]} 5. d3 {[%clk 1:32:34]} 5... b5 {[%clk
1:32:20]} 6. Bb3 {[%clk 1:32:58]} 6... Bc5 {[%clk 1:32:37]} 7. Bg5 {[%clk
1:32:05]} 7... h6 {[%clk 1:30:48]} 8. Bh4 {[%clk 1:32:14]} 8... g5 {[%clk
1:25:22]} 9. Bg3 {[%clk 1:32:20]} 9... d6 {[%clk 1:25:39]} 10. h3 {[%clk
1:31:58]} 10... Na5 {[%clk 1:17:15]} 11. Nc3 {[%clk 1:28:24]} 11... Nxb3 {[%clk
1:12:58]} 12. axb3 {[%clk 1:28:44]} 12... Nh5 {[%clk 1:09:58]} 13. Bh2 {[%clk
1:26:40]} 13... Nf4 {[%clk 1:09:40]} 14. Bxf4 {[%clk 1:26:03]} 14... exf4 {[%clk
1:07:48]} 15. Nh2 {[%clk 1:11:17]} 15... Bb6 {[%clk 1:03:50]} 16. Nxb5 {[%clk
1:03:49]} 16... Be6 {[%clk 0:53:55]} 17. Nc3 {[%clk 1:01:13]} 17... Qf6 {[%clk
0:48:23]} 18. Qf3 {[%clk 0:51:19]} 18... Qd4 {[%clk 0:43:38]} 19. Rf1 {[%clk
0:44:08]} 1/2-1/2

[Variant "Standard"]
[Site "Europe Echecs"]

[Event "Championnat du monde jeunes U12F"]
[Date "2024.11.24"]
[White "Prokofieva, Alexandra"]
[Black "Busuioc, Amelie"]
[WhiteElo "1467"]
[BlackElo "1581"]
[Round "9.38"]
[Result "0-1"]
[TimeControl "5400+30"]

1. d3 {[%clk 1:30:57]} 1... Nf6 {[%clk 1:30:31]} 2. e4 {[%clk 1:31:15]} 2... e5
{[%clk 1:30:47]} 3. g3 {[%clk 1:31:21]} 3... Bc5 {[%clk 1:30:46]} 4. Be3 {[%clk
1:31:16]} 4... Bb6 {[%clk 1:31:00]} 5. Bg2 {[%clk 1:31:24]} 5... Nc6 {[%clk
1:31:14]} 6. Ne2 {[%clk 1:30:14]} 6... d6 {[%clk 1:31:14]} 7. h3 {[%clk
1:29:53]} 7... Be6 {[%clk 1:31:15]} 8. Nbc3 {[%clk 1:29:32]} 8... O-O {[%clk
1:31:07]} 9. O-O {[%clk 1:27:20]} 9... Qd7 {[%clk 1:30:29]} 10. Kh2 {[%clk
1:24:20]} 10... d5 {[%clk 1:27:59]} 11. exd5 {[%clk 1:22:22]} 11... Nxd5 {[%clk
1:27:59]} 12. Nxd5 {[%clk 1:22:24]} 12... Bxd5 {[%clk 1:28:18]} 13. Bxd5 {[%clk
1:22:15]} 13... Qxd5 {[%clk 1:28:13]} 14. Nc3 {[%clk 1:15:43]} 14... Qd7 {[%clk
1:26:41]} 15. Rh1 {[%clk 1:12:28]} 15... f5 {[%clk 1:23:23]} 16. Bxb6 {[%clk
1:08:43]} 16... axb6 {[%clk 1:23:30]} 17. a3 {[%clk 1:05:36]} 17... f4 {[%clk
1:21:30]} 18. Qg1 {[%clk 1:01:17]} 18... Nd4 {[%clk 1:20:38]} 19. Qg2 {[%clk
0:56:20]} 19... fxg3+ {[%clk 1:18:42]} 20. Qxg3 {[%clk 0:55:24]} 20... Rae8
{[%clk 1:17:13]} 21. Rae1 {[%clk 0:50:19]} 21... Qc6 {[%clk 1:13:32]} 22. Re4
{[%clk 0:45:31]} 22... Nf3+ {[%clk 1:10:44]} 23. Kg2 {[%clk 0:45:31]} 23... Nd2
{[%clk 1:10:59]} 24. Rg1 {[%clk 0:43:48]} 24... Nxe4 {[%clk 1:11:08]} 25. Nxe4
{[%clk 0:43:51]} 25... Qxc2 {[%clk 1:10:19]} 26. Kh1 {[%clk 0:42:09]} 26... Re7
{[%clk 1:09:23]} 27. Qh4 {[%clk 0:40:54]} 27... Ref7 {[%clk 1:07:50]} 28. Ng5
{[%clk 0:38:56]} 28... Qc6+ {[%clk 1:05:04]} 29. Rg2 {[%clk 0:35:48]} 29... h6
{[%clk 1:04:15]} 30. Nxf7 {[%clk 0:35:05]} 30... Rxf7 {[%clk 1:04:04]} 31. Kh2
{[%clk 0:32:44]} 31... Qd6 {[%clk 1:02:32]} 32. Kg1 {[%clk 0:28:29]} 32... Qxd3
{[%clk 1:01:00]} 33. Qxh6 {[%clk 0:25:13]} 33... Qb1+ {[%clk 0:59:57]} 34. Kh2
{[%clk 0:25:29]} 34... Qxb2 {[%clk 0:59:00]} 35. Qe6 {[%clk 0:24:57]} 35... Qxa3
{[%clk 0:56:39]} 36. Qc8+ {[%clk 0:24:02]} 36... Qf8 {[%clk 0:56:25]} 37. Qxb7
{[%clk 0:23:35]} 37... Rxf2 {[%clk 0:56:11]} 38. Qxc7 {[%clk 0:22:22]} 38...
Qf4+ {[%clk 0:54:43]} 39. Kh1 {[%clk 0:21:41]} 39... Rf1+ {[%clk 0:52:39]} 40.
Rg1 {[%clk 0:22:04]} 40... Qf3+ {[%clk 0:52:49]} 41. Kh2 {[%clk 0:22:24]} 41...
Rf2+ {[%clk 0:53:00]} 42. Rg2 {[%clk 0:22:39]} 42... Qxg2# {[%clk 0:53:23]} 0-1

[Variant "Standard"]
[Site "Europe Echecs"]

[Event "Championnat du monde jeunes U12F"]
[Date "2024.11.24"]
[White "Saharkar, Sharvari"]
[Black "Li, Yeeshuen"]
[WhiteElo "1581"]
[BlackElo "1546"]
[Round "9.39"]
[Result "1-0"]
[TimeControl "5400+30"]

1. e4 {[%clk 1:30:31]} 1... d5 {[%clk 1:30:51]} 2. exd5 {[%clk 1:30:05]} 2...
Nf6 {[%clk 1:31:09]} 3. d4 {[%clk 1:29:10]} 3... Nxd5 {[%clk 1:31:29]} 4. Nf3
{[%clk 1:28:29]} 4... Nc6 {[%clk 1:29:19]} 5. Bc4 {[%clk 1:26:51]} 5... Bg4
{[%clk 1:23:31]} 6. c3 {[%clk 1:24:41]} 6... e6 {[%clk 1:20:50]} 7. Be3 {[%clk
1:22:29]} 7... Bd6 {[%clk 1:11:00]} 8. Nbd2 {[%clk 1:18:47]} 8... Nf4 {[%clk
1:07:04]} 9. Bxf4 {[%clk 1:14:34]} 9... Bxf4 {[%clk 1:07:14]} 10. Qc2 {[%clk
1:12:30]} 10... Qe7 {[%clk 0:59:44]} 11. Qe4 {[%clk 1:09:43]} 11... Qd6 {[%clk
0:58:04]} 12. g3 {[%clk 1:07:45]} 12... Bxd2+ {[%clk 0:54:38]} 13. Nxd2 {[%clk
1:07:42]} 13... Bf5 {[%clk 0:54:25]} 14. Qe2 {[%clk 1:05:31]} 14... O-O-O {[%clk
0:52:28]} 15. Ne4 {[%clk 1:03:22]} 15... Bxe4 {[%clk 0:51:02]} 16. Qxe4 {[%clk
1:03:34]} 16... Kb8 {[%clk 0:49:13]} 17. O-O-O {[%clk 1:02:30]} 17... Na5 {[%clk
0:46:36]} 18. Bd3 {[%clk 1:00:53]} 18... Qd5 {[%clk 0:44:23]} 19. Qxd5 {[%clk
0:55:50]} 19... Rxd5 {[%clk 0:43:12]} 20. f4 {[%clk 0:53:43]} 20... Rhd8 {[%clk
0:42:04]} 21. Rhe1 {[%clk 0:51:53]} 21... Nc6 {[%clk 0:38:08]} 22. Re3 {[%clk
0:49:02]} 22... Ne7 {[%clk 0:36:26]} 23. Rde1 {[%clk 0:46:54]} 23... c5 {[%clk
0:34:34]} 24. Be4 {[%clk 0:41:00]} 24... cxd4 {[%clk 0:33:54]} 25. Bxd5 {[%clk
0:39:46]} 25... dxe3 {[%clk 0:34:00]} 26. Be4 {[%clk 0:37:44]} 26... Rd2 {[%clk
0:31:51]} 27. h4 {[%clk 0:35:35]} 27... Nf5 {[%clk 0:28:39]} 28. Bxf5 {[%clk
0:34:22]} 28... exf5 {[%clk 0:29:03]} 29. Rxe3 {[%clk 0:34:43]} 29... Rd7 {[%clk
0:29:17]} 30. Kc2 {[%clk 0:33:48]} 30... Kc7 {[%clk 0:29:15]} 31. Re5 {[%clk
0:33:57]} 31... g6 {[%clk 0:29:34]} 32. h5 {[%clk 0:32:59]} 32... Kd6 {[%clk
0:28:53]} 33. h6 {[%clk 0:32:42]} 33... Re7 {[%clk 0:29:02]} 34. Rxe7 {[%clk
0:31:47]} 34... Kxe7 {[%clk 0:29:23]} 35. Kd3 {[%clk 0:31:48]} 35... f6 {[%clk
0:23:59]} 36. Kc4 {[%clk 0:30:52]} 36... Kd6 {[%clk 0:24:06]} 37. Kd4 {[%clk
0:31:15]} 37... g5 {[%clk 0:23:54]} 38. c4 {[%clk 0:28:39]} 38... b6 {[%clk
0:23:37]} 39. b4 {[%clk 0:27:37]} 39... Kc6 {[%clk 0:22:24]} 40. fxg5 {[%clk
0:27:51]} 40... fxg5 {[%clk 0:22:47]} 41. Ke5 {[%clk 0:28:08]} 41... f4 {[%clk
0:22:30]} 42. gxf4 {[%clk 0:27:16]} 42... g4 {[%clk 0:22:33]} 43. Ke4 {[%clk
0:27:01]} 43... Kd6 {[%clk 0:22:16]} 44. f5 {[%clk 0:27:00]} 44... g3 {[%clk
0:22:36]} 45. Kf3 {[%clk 0:27:24]} 45... Ke5 {[%clk 0:22:57]} 46. Kxg3 {[%clk
0:27:48]} 46... Kxf5 {[%clk 0:23:17]} 47. Kf3 {[%clk 0:28:05]} 47... Ke5 {[%clk
0:23:28]} 48. Kg4 {[%clk 0:28:04]} 48... Kd4 {[%clk 0:23:45]} 49. Kg5 {[%clk
0:28:13]} 49... Kxc4 {[%clk 0:24:05]} 50. Kf6 {[%clk 0:28:31]} 50... Kxb4 {[%clk
0:24:22]} 51. Kg7 {[%clk 0:28:57]} 51... Ka3 {[%clk 0:24:34]} 52. Kxh7 {[%clk
0:29:19]} 52... Kxa2 {[%clk 0:24:57]} 53. Kg7 {[%clk 0:29:40]} 53... a5 {[%clk
0:25:08]} 54. h7 {[%clk 0:29:32]} 54... a4 {[%clk 0:24:28]} 55. h8=Q {[%clk
0:29:55]} 55... a3 {[%clk 0:24:04]} 56. Qh2+ {[%clk 0:30:17]} 56... Kb1 {[%clk
0:23:00]} 57. Qg1+ {[%clk 0:30:06]} 57... Kc2 {[%clk 0:22:36]} 58. Qf2+ {[%clk
0:30:09]} 58... Kc1 {[%clk 0:21:11]} 59. Qa2 {[%clk 0:30:29]} 59... Kd1 {[%clk
0:21:25]} 60. Qxa3 {[%clk 0:30:46]} 60... Kc2 {[%clk 0:21:49]} 61. Kf6 {[%clk
0:31:07]} 61... Kb1 {[%clk 0:22:13]} 62. Ke5 {[%clk 0:31:03]} 62... Kc2 {[%clk
0:22:32]} 63. Kd4 {[%clk 0:31:27]} 63... b5 {[%clk 0:22:55]} 64. Qa2+ {[%clk
0:31:43]} 64... Kc1 {[%clk 0:23:08]} 65. Kc3 {[%clk 0:31:47]} 65... b4+ {[%clk
0:23:32]} 66. Kxb4 {[%clk 0:32:11]} 66... Kd1 {[%clk 0:23:58]} 67. Kc3 {[%clk
0:32:29]} 67... Kc1 {[%clk 0:24:18]} 68. Qa1# {[%clk 0:32:37]} 1-0

[Variant "Standard"]
[Site "Europe Echecs"]

[Event "Championnat du monde jeunes U12F"]
[Date "2024.11.24"]
[White "Yang, Hayeon"]
[Black "Istratova, Nika"]
[WhiteElo "1482"]
[BlackElo "1473"]
[Round "9.40"]
[Result "1/2-1/2"]
[TimeControl "5400+30"]

1. d4 {[%clk 1:30:53]} 1... d5 {[%clk 1:30:53]} 2. Bf4 {[%clk 1:31:11]} 2... Nf6
{[%clk 1:31:09]} 3. e3 {[%clk 1:31:19]} 3... e6 {[%clk 1:31:29]} 4. Nf3 {[%clk
1:30:58]} 4... Bd6 {[%clk 1:31:35]} 5. Bg3 {[%clk 1:30:54]} 5... O-O {[%clk
1:29:17]} 6. c3 {[%clk 1:30:50]} 6... c5 {[%clk 1:28:12]} 7. Nbd2 {[%clk
1:30:40]} 7... b6 {[%clk 1:23:31]} 8. b3 {[%clk 1:29:26]} 8... Qc7 {[%clk
1:21:08]} 9. Bd3 {[%clk 1:28:08]} 9... Nbd7 {[%clk 1:20:10]} 10. Rc1 {[%clk
1:22:39]} 10... e5 {[%clk 1:18:00]} 11. dxe5 {[%clk 1:19:09]} 11... Nxe5 {[%clk
1:17:25]} 12. Bxe5 {[%clk 1:18:48]} 12... Bxe5 {[%clk 1:17:46]} 13. Nxe5 {[%clk
1:19:08]} 13... Qxe5 {[%clk 1:18:00]} 14. c4 {[%clk 1:16:58]} 14... Re8 {[%clk
1:11:55]} 15. O-O Bb7 {[%clk 1:08:11]} 16. Nf3 {[%clk 1:10:49]} 16... Qc7 {[%clk
1:02:28]} 17. cxd5 {[%clk 1:08:26]} 17... Bxd5 {[%clk 1:01:14]} 18. Bc4 {[%clk
1:07:52]} 18... Bxc4 {[%clk 0:54:25]} 19. Rxc4 {[%clk 1:06:47]} 19... Rad8
{[%clk 0:53:00]} 20. Qe2 {[%clk 1:06:05]} 20... Re4 {[%clk 0:49:35]} 21. h3
{[%clk 1:05:03]} 21... h6 {[%clk 0:42:47]} 22. Rxe4 {[%clk 1:03:07]} 22... Nxe4
{[%clk 0:42:43]} 23. Rd1 {[%clk 1:01:04]} 23... Nc3 {[%clk 0:32:28]} 24. Rxd8+
{[%clk 1:00:30]} 24... Qxd8 {[%clk 0:32:53]} 25. Qc2 {[%clk 0:58:23]} 25... Qd1+
{[%clk 0:30:27]} 26. Qxd1 {[%clk 0:58:38]} 26... Nxd1 {[%clk 0:30:48]} 27. Kf1
{[%clk 0:57:31]} 27... Nc3 {[%clk 0:29:49]} 28. a3 {[%clk 0:57:24]} 28... f6
{[%clk 0:29:06]} 29. g4 {[%clk 0:56:26]} 29... Kf7 {[%clk 0:28:11]} 30. Ke1
{[%clk 0:56:05]} 30... g5 {[%clk 0:24:44]} 31. h4 {[%clk 0:55:51]} 31... Ke6
{[%clk 0:22:55]} 32. h5 {[%clk 0:55:17]} 32... f5 {[%clk 0:18:37]} 33. Nh2
{[%clk 0:53:45]} 33... b5 {[%clk 0:14:15]} 34. f3 {[%clk 0:53:23]} 34... f4
{[%clk 0:09:34]} 35. exf4 {[%clk 0:51:54]} 35... gxf4 {[%clk 0:09:48]} 36. Nf1
{[%clk 0:51:12]} 36... a5 {[%clk 0:08:56]} 37. Nd2 {[%clk 0:51:25]} 37... Nd5
{[%clk 0:05:54]} 38. Ne4 {[%clk 0:51:04]} 38... c4 {[%clk 0:05:34]} 39. bxc4
{[%clk 0:51:02]} 39... bxc4 {[%clk 0:05:49]} 40. Kd2 {[%clk 0:50:53]} 40... a4
{[%clk 0:05:00]} 41. Nc3 {[%clk 0:51:08]} 41... Nb6 {[%clk 0:04:50]} 42. Ne4
{[%clk 0:50:34]} 42... Nd5 {[%clk 0:04:58]} 43. g5 {[%clk 0:49:28]} 43... hxg5
{[%clk 0:04:17]} 44. Nxg5+ {[%clk 0:48:58]} 44... Kf6 {[%clk 0:03:53]} 45. h6
{[%clk 0:48:50]} 45... Kg6 {[%clk 0:03:27]} 46. h7 {[%clk 0:49:01]} 46... Kg7
{[%clk 0:03:40]} 47. Ne4 {[%clk 0:47:57]} 47... Kxh7 {[%clk 0:03:34]} 48. Nc5
{[%clk 0:48:09]} 48... Nb6 {[%clk 0:03:04]} 49. Kc3 {[%clk 0:48:14]} 49... Kg6
{[%clk 0:02:53]} 50. Ne6 {[%clk 0:45:33]} 50... Kf5 {[%clk 0:02:21]} 51. Nd4+
{[%clk 0:45:05]} 51... Ke5 {[%clk 0:02:14]} 52. Ne2 {[%clk 0:45:07]} 52... Kf5
{[%clk 0:01:17]} 53. Kd4 {[%clk 0:45:24]} 53... Kg5 {[%clk 0:00:42]} 54. Ke4
{[%clk 0:45:29]} 54... Nd7 {[%clk 0:00:40]} 55. Nxf4 {[%clk 0:45:18]} 55... Nc5+
{[%clk 0:00:42]} 56. Ke3 {[%clk 0:45:31]} 56... c3 {[%clk 0:00:38]} 57. Ne2
{[%clk 0:45:27]} 57... c2 {[%clk 0:00:33]} 58. f4+ {[%clk 0:45:39]} 58... Kf5
{[%clk 0:00:48]} 59. Kd2 {[%clk 0:45:53]} 59... Ke4 {[%clk 0:00:37]} 60. Kxc2
{[%clk 0:45:50]} 60... Ke3 {[%clk 0:00:40]} 61. Nc1 {[%clk 0:44:17]} 61... Kd4
{[%clk 0:00:34]} 62. f5 {[%clk 0:44:19]} 62... Ne4 {[%clk 0:00:36]} 63. Ne2+
{[%clk 0:42:49]} 63... Ke5 {[%clk 0:00:37]} 64. Nc3 {[%clk 0:42:36]} 64... Nc5
{[%clk 0:00:38]} 65. Nb5 {[%clk 0:42:20]} 65... Kxf5 {[%clk 0:00:53]} 66. Kc3
{[%clk 0:42:37]} 66... Na6 {[%clk 0:00:47]} 1/2-1/2

[Variant "Standard"]
[Site "Europe Echecs"]